[Event "Early-Titled-Tuesday-Blitz-February-06-2024"]
[Site "Chess.com"]
[Date "2024.02.06"]
[Round "1"]
[White "SantoBlue"]
[Black "DrCeltic"]
[Result "0-1"]
[WhiteElo "2995"]
[BlackElo "2528"]
[TimeControl "180+1"]
[EndTime "8:08:17 PST"]
[Termination "DrCeltic won on time"]

1. e4 {[%clk 0:03:00.9]} 1... c5 {[%clk 0:02:59]} 2. Nc3 {[%clk 0:02:57.8]} 2...
a6 {[%clk 0:02:58.6]} 3. g3 {[%clk 0:02:56.8]} 3... b5 {[%clk 0:02:58.6]} 4. Bg2
{[%clk 0:02:57.5]} 4... Bb7 {[%clk 0:02:58.8]} 5. d3 {[%clk 0:02:56.1]} 5... b4
{[%clk 0:02:59]} 6. Nce2 {[%clk 0:02:56.1]} 6... Nf6 {[%clk 0:02:58.8]} 7. Nh3
{[%clk 0:02:55.5]} 7... e5 {[%clk 0:02:58]} 8. O-O {[%clk 0:02:54.7]} 8... d6
{[%clk 0:02:57.9]} 9. f4 {[%clk 0:02:55]} 9... Be7 {[%clk 0:02:58.2]} 10. Nf2
{[%clk 0:02:53.8]} 10... O-O {[%clk 0:02:57.9]} 11. g4 {[%clk 0:02:54.1]} 11...
exf4 {[%clk 0:02:57.9]} 12. Nxf4 {[%clk 0:02:40.6]} 12... Nc6 {[%clk 0:02:57]}
13. g5 {[%clk 0:02:39]} 13... Nd7 {[%clk 0:02:53.9]} 14. h4 {[%clk 0:02:39.5]}
14... Nde5 {[%clk 0:02:48.3]} 15. Nd5 {[%clk 0:02:38.2]} 15... Nd4 {[%clk
0:02:46.1]} 16. c3 {[%clk 0:02:33]} 16... bxc3 {[%clk 0:02:43.9]} 17. bxc3
{[%clk 0:02:33.9]} 17... Ne6 {[%clk 0:02:42.8]} 18. d4 {[%clk 0:02:32.2]} 18...
Nd7 {[%clk 0:02:30.1]} 19. Rb1 {[%clk 0:02:26.6]} 19... Bxd5 {[%clk 0:02:22]}
20. exd5 {[%clk 0:02:26.4]} 20... Nc7 {[%clk 0:02:21.9]} 21. Ng4 {[%clk
0:02:14.6]} 21... Nb5 {[%clk 0:02:17.1]} 22. Qd3 {[%clk 0:02:08.1]} 22... cxd4
{[%clk 0:02:15.9]} 23. cxd4 {[%clk 0:02:08.3]} 23... Rc8 {[%clk 0:02:05.8]} 24.
Bd2 {[%clk 0:02:07.6]} 24... Qb6 {[%clk 0:01:58.8]} 25. Rf4 {[%clk 0:01:57.3]}
25... Ne5 {[%clk 0:01:52.2]} 26. Nxe5 {[%clk 0:01:51.6]} 26... dxe5 {[%clk
0:01:52.4]} 27. Re4 {[%clk 0:01:52.3]} 27... Bd6 {[%clk 0:01:42.8]} 28. a4
{[%clk 0:01:51]} 28... exd4 {[%clk 0:01:32.3]} 29. axb5 {[%clk 0:01:50.6]} 29...
axb5 {[%clk 0:00:52.6]} 30. Rxb5 {[%clk 0:01:46.5]} 30... Qa6 {[%clk 0:00:49.4]}
31. Rb3 {[%clk 0:01:43.9]} 31... Qa1+ {[%clk 0:00:41.5]} 32. Re1 {[%clk
0:01:43.5]} 32... Qa4 {[%clk 0:00:39.6]} 33. h5 {[%clk 0:01:27.2]} 33... Rc3
{[%clk 0:00:39.4]} 34. Bxc3 {[%clk 0:01:23.2]} 34... dxc3 {[%clk 0:00:39]} 35.
Rxc3 {[%clk 0:01:19.4]} 35... Qh4 {[%clk 0:00:35.4]} 36. Re4 {[%clk 0:01:14]}
36... Qxh5 {[%clk 0:00:27.1]} 37. Qe3 {[%clk 0:01:04.5]} 37... Qd1+ {[%clk
0:00:24.2]} 38. Qe1 {[%clk 0:01:03.1]} 38... Qh5 {[%clk 0:00:23.2]} 39. Rh3
{[%clk 0:00:59.6]} 39... Qxg5 {[%clk 0:00:22.8]} 40. Re8 {[%clk 0:01:00]} 40...
Bc5+ {[%clk 0:00:23.2]} 41. Kh1 {[%clk 0:01:00]} 41... h5 {[%clk 0:00:22.2]} 42.
Rxf8+ {[%clk 0:01:00]} 42... Kxf8 {[%clk 0:00:23]} 43. Rc3 {[%clk 0:00:55.1]}
43... Be7 {[%clk 0:00:03.3]} 44. Rc8+ {[%clk 0:00:54.2]} 44... Bd8 {[%clk
0:00:03.8]} 45. d6 {[%clk 0:00:53.7]} 45... Kg8 {[%clk 0:00:04.3]} 46. Qe8+
{[%clk 0:00:50.5]} 46... Kh7 {[%clk 0:00:03.6]} 47. Qxd8 {[%clk 0:00:43.5]}
47... Qd2 {[%clk 0:00:02.8]} 0-1

[Event "Early-Titled-Tuesday-Blitz-February-06-2024"]
[Site "Chess.com"]
[Date "2024.02.06"]
[Round "1"]
[White "MightyGMpretender"]
[Black "SargissyanSargis"]
[Result "1-0"]
[WhiteElo "2733"]
[BlackElo "2408"]
[TimeControl "180+1"]
[EndTime "8:08:17 PST"]
[Termination "MightyGMpretender won on time"]

1. e4 {[%clk 0:03:00.9]} 1... e5 {[%clk 0:02:59.2]} 2. Nf3 {[%clk 0:03:01]} 2...
Nc6 {[%clk 0:02:59]} 3. Bb5 {[%clk 0:03:01.2]} 3... Nf6 {[%clk 0:02:58.7]} 4.
Bxc6 {[%clk 0:02:58.2]} 4... dxc6 {[%clk 0:02:58.2]} 5. d3 {[%clk 0:02:57.7]}
5... Bc5 {[%clk 0:02:49.4]} 6. O-O {[%clk 0:02:57.1]} 6... Bg4 {[%clk
0:02:35.1]} 7. Be3 {[%clk 0:02:56]} 7... Nd7 {[%clk 0:02:29.4]} 8. Nbd2 {[%clk
0:02:52.8]} 8... Qf6 {[%clk 0:02:25.5]} 9. Qe1 {[%clk 0:02:51.5]} 9... O-O
{[%clk 0:02:12.1]} 10. Bxc5 {[%clk 0:02:49.1]} 10... Nxc5 {[%clk 0:02:11.8]} 11.
Qe3 {[%clk 0:02:49.8]} 11... Ne6 {[%clk 0:02:08.5]} 12. h3 {[%clk 0:02:45.8]}
12... Bxf3 {[%clk 0:01:52]} 13. Qxf3 {[%clk 0:02:41.2]} 13... Nf4 {[%clk
0:01:48.7]} 14. Kh2 {[%clk 0:02:37.4]} 14... Qh6 {[%clk 0:01:44.6]} 15. Nc4
{[%clk 0:02:36.8]} 15... Rae8 {[%clk 0:01:40.1]} 16. Ne3 {[%clk 0:02:36.5]}
16... g6 {[%clk 0:01:31.9]} 17. Qg4 {[%clk 0:02:36.5]} 17... Kh8 {[%clk
0:01:29]} 18. g3 {[%clk 0:02:36.4]} 18... Ne6 {[%clk 0:01:24.9]} 19. Rae1 {[%clk
0:02:29.3]} 19... Ng7 {[%clk 0:01:12.3]} 20. Qd7 {[%clk 0:02:21]} 20... Ne6
{[%clk 0:01:02]} 21. f4 {[%clk 0:01:56.3]} 21... exf4 {[%clk 0:00:50.7]} 22.
gxf4 {[%clk 0:01:56.3]} 22... Nxf4 {[%clk 0:00:39]} 23. Qg4 {[%clk 0:01:55.1]}
23... Ne6 {[%clk 0:00:37.8]} 24. Rf6 {[%clk 0:01:55]} 24... Qg5 {[%clk
0:00:32.3]} 25. Qxg5 {[%clk 0:01:35]} 25... Nxg5 {[%clk 0:00:32]} 26. h4 {[%clk
0:01:31.1]} 26... Ne6 {[%clk 0:00:31.3]} 27. h5 {[%clk 0:01:29.7]} 27... Kg7
{[%clk 0:00:22]} 28. Ref1 {[%clk 0:01:29.1]} 28... Nd4 {[%clk 0:00:17.3]} 29.
Kg3 {[%clk 0:01:17.5]} 29... h6 {[%clk 0:00:16.1]} 30. R1f2 {[%clk 0:01:10.4]}
30... Re6 {[%clk 0:00:15.8]} 31. R6f4 {[%clk 0:01:03.4]} 31... Ree8 {[%clk
0:00:11.6]} 32. Ng4 {[%clk 0:01:02.2]} 32... Ne6 {[%clk 0:00:10.5]} 33. Rf6
{[%clk 0:00:58.5]} 33... Ng5 {[%clk 0:00:10.7]} 34. Kh4 {[%clk 0:00:42.9]} 34...
Re6 {[%clk 0:00:09.6]} 35. R6f4 {[%clk 0:00:40.9]} 35... Ree8 {[%clk 0:00:09.2]}
36. Kg3 {[%clk 0:00:39.6]} 36... Ne6 {[%clk 0:00:06.7]} 37. Rf6 {[%clk 0:00:39]}
37... Ng5 {[%clk 0:00:07.1]} 38. a4 {[%clk 0:00:39]} 38... Rd8 {[%clk
0:00:05.2]} 39. a5 {[%clk 0:00:36]} 39... a6 {[%clk 0:00:05.4]} 40. b3 {[%clk
0:00:34.4]} 40... Rde8 {[%clk 0:00:05.6]} 41. R6f4 {[%clk 0:00:33.6]} 41... Rd8
{[%clk 0:00:04.7]} 42. Kg2 {[%clk 0:00:21.9]} 42... Rde8 {[%clk 0:00:04.4]} 43.
Nf6 {[%clk 0:00:21.9]} 43... Rd8 {[%clk 0:00:04.5]} 44. e5 {[%clk 0:00:20.6]}
44... Ne6 {[%clk 0:00:03.6]} 45. Rg4 {[%clk 0:00:19.2]} 45... Rd4 {[%clk
0:00:03.1]} 46. Ne4 {[%clk 0:00:18.5]} 46... Ng5 {[%clk 0:00:02.1]} 47. Rff4
{[%clk 0:00:09.1]} 47... Nxe4 {[%clk 0:00:01.8]} 48. Rxe4 {[%clk 0:00:10]} 48...
Rxe4 {[%clk 0:00:02.1]} 49. Rxe4 {[%clk 0:00:10.9]} 49... g5 {[%clk 0:00:02.4]}
50. d4 {[%clk 0:00:11.6]} 50... Re8 {[%clk 0:00:02.8]} 51. Kf3 {[%clk
0:00:12.1]} 51... Re6 {[%clk 0:00:01.7]} 52. Kg4 {[%clk 0:00:12.4]} 52... f6
{[%clk 0:00:01.7]} 53. Kf5 {[%clk 0:00:12.1]} 53... Kf7 {[%clk 0:00:02.2]} 54.
c4 {[%clk 0:00:11]} 54... fxe5 {[%clk 0:00:02.5]} 55. dxe5 {[%clk 0:00:11.5]}
55... Ke7 {[%clk 0:00:02.4]} 56. c5 {[%clk 0:00:11.1]} 56... Kf7 {[%clk
0:00:01.9]} 57. b4 {[%clk 0:00:11.2]} 57... Ke7 {[%clk 0:00:02.5]} 58. Rd4
{[%clk 0:00:11.5]} 58... b5 {[%clk 0:00:01.3]} 59. Rd3 {[%clk 0:00:11.3]} 1-0

[Event "Early-Titled-Tuesday-Blitz-February-06-2024"]
[Site "Chess.com"]
[Date "2024.02.06"]
[Round "1"]
[White "Shushik"]
[Black "OparinGrigoriy"]
[Result "1/2-1/2"]
[WhiteElo "2518"]
[BlackElo "2994"]
[TimeControl "180+1"]
[EndTime "8:08:19 PST"]
[Termination "Game drawn - insufficient material"]

1. e4 {[%clk 0:03:00.9]} 1... a6 {[%clk 0:02:52.1]} 2. d4 {[%clk 0:02:58.2]}
2... c6 {[%clk 0:02:52.3]} 3. a4 {[%clk 0:02:53]} 3... d5 {[%clk 0:02:52.4]} 4.
Nc3 {[%clk 0:02:50.4]} 4... dxe4 {[%clk 0:02:49]} 5. Nxe4 {[%clk 0:02:51.3]}
5... Bf5 {[%clk 0:02:48.4]} 6. Ng3 {[%clk 0:02:51.1]} 6... Bg6 {[%clk
0:02:47.8]} 7. Nf3 {[%clk 0:02:51.8]} 7... Nd7 {[%clk 0:02:45.7]} 8. h4 {[%clk
0:02:48.2]} 8... h6 {[%clk 0:02:46]} 9. h5 {[%clk 0:02:46.9]} 9... Bh7 {[%clk
0:02:46.4]} 10. Bd3 {[%clk 0:02:47.2]} 10... Bxd3 {[%clk 0:02:46.6]} 11. Qxd3
{[%clk 0:02:48.1]} 11... e6 {[%clk 0:02:47.1]} 12. Bf4 {[%clk 0:02:31.8]} 12...
Ngf6 {[%clk 0:02:44.5]} 13. c3 {[%clk 0:02:14.1]} 13... Nd5 {[%clk 0:02:39.7]}
14. Bd2 {[%clk 0:02:12.9]} 14... Qc7 {[%clk 0:02:40.1]} 15. O-O {[%clk
0:02:06.9]} 15... Be7 {[%clk 0:02:33.4]} 16. b4 {[%clk 0:02:03.4]} 16... a5
{[%clk 0:02:28.6]} 17. b5 {[%clk 0:02:00.6]} 17... c5 {[%clk 0:02:14.1]} 18. Ne4
{[%clk 0:01:51.3]} 18... O-O {[%clk 0:02:13.3]} 19. Rfe1 {[%clk 0:01:38.2]}
19... cxd4 {[%clk 0:02:09.6]} 20. Nxd4 {[%clk 0:01:33.1]} 20... Nc5 {[%clk
0:02:04.4]} 21. Nxc5 {[%clk 0:01:28.6]} 21... Bxc5 {[%clk 0:02:05.3]} 22. Qf3
{[%clk 0:01:21.8]} 22... Bxd4 {[%clk 0:01:53.6]} 23. cxd4 {[%clk 0:01:21.5]}
23... Rfc8 {[%clk 0:01:54.1]} 24. Qg4 {[%clk 0:01:12.6]} 24... Kh8 {[%clk
0:01:49.4]} 25. Rac1 {[%clk 0:01:09.1]} 25... Qd8 {[%clk 0:01:49.5]} 26. Qf3
{[%clk 0:00:58.6]} 26... Kg8 {[%clk 0:01:48.6]} 27. Qg4 {[%clk 0:00:57.8]} 27...
Nf6 {[%clk 0:01:48.5]} 28. Qh4 {[%clk 0:00:57.7]} 28... Kh7 {[%clk 0:01:30.8]}
29. Be3 {[%clk 0:00:44.9]} 29... Rxc1 {[%clk 0:01:26.4]} 30. Rxc1 {[%clk
0:00:44.7]} 30... Rc8 {[%clk 0:01:27.1]} 31. Rxc8 {[%clk 0:00:40.3]} 31... Qxc8
{[%clk 0:01:28]} 32. Kh2 {[%clk 0:00:27.9]} 32... Qc2 {[%clk 0:01:25.4]} 33. d5
{[%clk 0:00:21.7]} 33... Nxd5 {[%clk 0:01:21.2]} 34. Ba7 {[%clk 0:00:16.7]}
34... b6 {[%clk 0:01:18.1]} 35. Bb8 {[%clk 0:00:16.8]} 35... Qf5 {[%clk
0:01:13.4]} 36. Bd6 {[%clk 0:00:15.4]} 36... e5 {[%clk 0:01:03.5]} 37. Kg1
{[%clk 0:00:13.8]} 37... e4 {[%clk 0:01:03]} 38. Kh2 {[%clk 0:00:12.9]} 38...
Qe6 {[%clk 0:01:02.8]} 39. Bg3 {[%clk 0:00:12.2]} 39... f5 {[%clk 0:01:01.7]}
40. Bf4 {[%clk 0:00:09.4]} 40... Nf6 {[%clk 0:00:59.5]} 41. Be3 {[%clk
0:00:07.6]} 41... Qf7 {[%clk 0:00:59.4]} 42. Bxb6 {[%clk 0:00:02.7]} 42... Nd5
{[%clk 0:00:39.9]} 43. Be3 {[%clk 0:00:02]} 43... f4 {[%clk 0:00:37.7]} 44. Bd4
{[%clk 0:00:02.4]} 44... Qe6 {[%clk 0:00:32.5]} 45. b6 {[%clk 0:00:02.2]} 45...
Qd7 {[%clk 0:00:24.8]} 46. Qh3 {[%clk 0:00:01.1]} 46... Qf7 {[%clk 0:00:21.1]}
47. Qg4 {[%clk 0:00:01.5]} 47... Kg8 {[%clk 0:00:15]} 48. Qg6 {[%clk 0:00:01.7]}
48... Qb7 {[%clk 0:00:03.1]} 49. Qxg7+ {[%clk 0:00:02]} 49... Qxg7 {[%clk
0:00:02.5]} 50. Bxg7 {[%clk 0:00:02.9]} 50... Nxb6 {[%clk 0:00:02.5]} 51. Bxh6
{[%clk 0:00:03.5]} 51... f3 {[%clk 0:00:01.8]} 52. Be3 {[%clk 0:00:02.5]} 52...
Nxa4 {[%clk 0:00:02.2]} 53. gxf3 {[%clk 0:00:02.2]} 53... exf3 {[%clk 0:00:03]}
54. Kg3 {[%clk 0:00:02.7]} 54... Nb2 {[%clk 0:00:03.5]} 55. Kxf3 {[%clk
0:00:02.5]} 55... a4 {[%clk 0:00:04.2]} 56. Bc5 {[%clk 0:00:02.4]} 56... Nc4
{[%clk 0:00:04.4]} 57. Kg4 {[%clk 0:00:02.6]} 57... a3 {[%clk 0:00:04.4]} 58.
Bxa3 {[%clk 0:00:02.5]} 58... Nxa3 {[%clk 0:00:05.3]} 59. f4 {[%clk 0:00:02.7]}
59... Nc4 {[%clk 0:00:06]} 60. f5 {[%clk 0:00:03.4]} 60... Ne3+ {[%clk
0:00:06.6]} 61. Kg5 {[%clk 0:00:03.7]} 61... Nxf5 {[%clk 0:00:07.5]} 62. Kxf5
{[%clk 0:00:04.3]} 62... Kh7 {[%clk 0:00:08.4]} 63. h6 {[%clk 0:00:04.8]} 63...
Kh8 {[%clk 0:00:09.3]} 64. h7 {[%clk 0:00:04]} 64... Kxh7 {[%clk 0:00:10.2]}
1/2-1/2

[Event "Early-Titled-Tuesday-Blitz-February-06-2024"]
[Site "Chess.com"]
[Date "2024.02.06"]
[Round "1"]
[White "Crazy_girl99"]
[Black "Kostukov_Alex"]
[Result "1/2-1/2"]
[WhiteElo "2613"]
[BlackElo "2303"]
[TimeControl "180+1"]
[EndTime "8:08:20 PST"]
[Termination "Game drawn by agreement"]

1. e4 {[%clk 0:02:55.9]} 1... c5 {[%clk 0:02:59.6]} 2. Nf3 {[%clk 0:02:55.2]}
2... g6 {[%clk 0:02:59.6]} 3. d4 {[%clk 0:02:55.1]} 3... cxd4 {[%clk 0:03:00.5]}
4. Nxd4 {[%clk 0:02:55.2]} 4... Bg7 {[%clk 0:03:00.7]} 5. Nc3 {[%clk 0:02:55.1]}
5... Nc6 {[%clk 0:03:01.1]} 6. Be3 {[%clk 0:02:55.3]} 6... Nf6 {[%clk
0:03:01.1]} 7. Bc4 {[%clk 0:02:54]} 7... O-O {[%clk 0:02:59.8]} 8. O-O {[%clk
0:02:49.7]} 8... Nxe4 {[%clk 0:02:49.6]} 9. Nxe4 {[%clk 0:02:40.5]} 9... d5
{[%clk 0:02:48.6]} 10. Nxc6 {[%clk 0:02:32.3]} 10... bxc6 {[%clk 0:02:47.1]} 11.
Bd3 {[%clk 0:02:32.4]} 11... dxe4 {[%clk 0:02:45.9]} 12. Bxe4 {[%clk 0:02:33.3]}
12... Ba6 {[%clk 0:02:19.7]} 13. Re1 {[%clk 0:02:27.5]} 13... Bxb2 {[%clk
0:02:12.8]} 14. Bxc6 {[%clk 0:02:20.4]} 14... Rc8 {[%clk 0:01:35]} 15. Be4
{[%clk 0:02:10.7]} 15... Bxa1 {[%clk 0:00:59.6]} 16. Qxa1 {[%clk 0:02:11.6]}
16... f6 {[%clk 0:00:47.3]} 17. h4 {[%clk 0:02:10]} 17... Qc7 {[%clk 0:00:36.1]}
18. h5 {[%clk 0:02:00.7]} 18... Bb7 {[%clk 0:00:30.8]} 19. Bd3 {[%clk
0:01:46.7]} 19... Qc6 {[%clk 0:00:30.1]} 20. f3 {[%clk 0:01:46.8]} 20... Rfd8
{[%clk 0:00:26.9]} 21. hxg6 {[%clk 0:01:45.3]} 21... Rxd3 {[%clk 0:00:21.2]} 22.
gxh7+ {[%clk 0:01:44.9]} 22... Kxh7 {[%clk 0:00:20]} 23. cxd3 {[%clk 0:01:45.3]}
23... Qc2 {[%clk 0:00:15.9]} 24. Bxa7 {[%clk 0:01:43.4]} 24... e5 {[%clk
0:00:13.4]} 25. Be3 {[%clk 0:01:37.7]} 25... Bxf3 {[%clk 0:00:11.8]} 26. Bf2
{[%clk 0:01:20.4]} 26... Rg8 {[%clk 0:00:11.3]} 27. g3 {[%clk 0:00:52]} 27...
Qxd3 {[%clk 0:00:11.1]} 28. Qc1 {[%clk 0:00:42.6]} 28... Qg6 {[%clk 0:00:08.4]}
29. Qe3 {[%clk 0:00:35.5]} 29... e4 {[%clk 0:00:07.5]} 30. Rc1 {[%clk
0:00:15.3]} 30... Rg7 {[%clk 0:00:06.9]} 31. Kf1 {[%clk 0:00:14.3]} 31... Qh5
{[%clk 0:00:05.9]} 32. Bg1 {[%clk 0:00:11.8]} 32... Qh3+ {[%clk 0:00:05]} 33.
Ke1 {[%clk 0:00:11.8]} 33... Rd7 {[%clk 0:00:04.2]} 34. Qf2 {[%clk 0:00:09.5]}
34... Qg4 {[%clk 0:00:02.3]} 35. Kf1 {[%clk 0:00:05.2]} 35... Rd3 {[%clk
0:00:02.1]} 36. Re1 {[%clk 0:00:04.4]} 36... Kg6 {[%clk 0:00:02.6]} 37. Qb6
{[%clk 0:00:03.9]} 37... Qd7 {[%clk 0:00:02.8]} 38. Bh2 {[%clk 0:00:02.8]} 38...
Rd1 {[%clk 0:00:02.9]} 39. Qf2 {[%clk 0:00:03.4]} 39... Qd3+ {[%clk 0:00:03.2]}
40. Kg1 {[%clk 0:00:03.4]} 40... Qb1 {[%clk 0:00:03.6]} 41. Rf1 {[%clk
0:00:03.5]} 41... Rc1 {[%clk 0:00:02.1]} 42. Rxc1 {[%clk 0:00:03.5]} 42... Qxc1+
{[%clk 0:00:03]} 43. Qf1 {[%clk 0:00:04.2]} 43... Qd2 {[%clk 0:00:03]} 44. Qf2
{[%clk 0:00:04.7]} 44... Qd1+ {[%clk 0:00:02.7]} 45. Qf1 {[%clk 0:00:05.3]}
45... Qd4+ {[%clk 0:00:02.5]} 46. Qf2 {[%clk 0:00:05.4]} 46... Qd1+ {[%clk
0:00:02.8]} 47. Qf1 {[%clk 0:00:06]} 47... Qd4+ {[%clk 0:00:02.8]} 48. Qf2
{[%clk 0:00:06.6]} 48... Qa1+ {[%clk 0:00:02.6]} 49. Qf1 {[%clk 0:00:07.1]}
49... Qxa2 {[%clk 0:00:03.2]} 50. g4 {[%clk 0:00:07.6]} 50... Qa7+ {[%clk
0:00:03]} 51. Qf2 {[%clk 0:00:08.1]} 51... Qa1+ {[%clk 0:00:02.8]} 52. Qf1
{[%clk 0:00:08.4]} 52... Qd4+ {[%clk 0:00:03.2]} 53. Qf2 {[%clk 0:00:08.7]}
53... Qxf2+ {[%clk 0:00:03.2]} 54. Kxf2 {[%clk 0:00:08.8]} 54... Bxg4 {[%clk
0:00:04.1]} 55. Ke3 {[%clk 0:00:08.9]} 55... Kf5 {[%clk 0:00:03.9]} 56. Bf4
{[%clk 0:00:09.5]} 56... Bf3 {[%clk 0:00:04.3]} 57. Bh6 {[%clk 0:00:10.1]} 57...
Kg4 {[%clk 0:00:03.9]} 58. Bf4 {[%clk 0:00:10.6]} 58... f5 {[%clk 0:00:04.8]}
59. Bd6 {[%clk 0:00:11.1]} 59... Kh3 {[%clk 0:00:04.4]} 60. Bf4 {[%clk 0:00:12]}
60... Kg2 {[%clk 0:00:05.1]} 61. Bd6 {[%clk 0:00:12.6]} 61... Kh3 {[%clk
0:00:06]} 62. Bf4 {[%clk 0:00:13.4]} 62... Kg4 {[%clk 0:00:06.8]} 63. Bd6 {[%clk
0:00:14.2]} 63... Kh5 {[%clk 0:00:07.6]} 64. Bc7 {[%clk 0:00:14.8]} 64... Kg6
{[%clk 0:00:08.5]} 65. Be5 {[%clk 0:00:15.2]} 65... Kf7 {[%clk 0:00:09.4]} 66.
Bf4 {[%clk 0:00:16.1]} 66... Ke6 {[%clk 0:00:10.3]} 67. Bb8 {[%clk 0:00:16.2]}
67... Kd5 {[%clk 0:00:10.7]} 68. Bg3 {[%clk 0:00:16.8]} 1/2-1/2

[Event "Early-Titled-Tuesday-Blitz-February-06-2024"]
[Site "Chess.com"]
[Date "2024.02.06"]
[Round "1"]
[White "ATM622"]
[Black "MatthewG-p4p"]
[Result "0-1"]
[WhiteElo "2452"]
[BlackElo "2813"]
[TimeControl "180+1"]
[EndTime "8:08:27 PST"]
[Termination "MatthewG-p4p won by resignation"]

1. d4 {[%clk 0:03:00.9]} 1... d5 {[%clk 0:02:55.8]} 2. c4 {[%clk 0:03:00.3]}
2... e6 {[%clk 0:02:52.2]} 3. Nf3 {[%clk 0:03:00.5]} 3... c6 {[%clk 0:02:51.2]}
4. Nbd2 {[%clk 0:03:00]} 4... f5 {[%clk 0:02:49.4]} 5. g3 {[%clk 0:03:00.1]}
5... Nf6 {[%clk 0:02:49.3]} 6. Bg2 {[%clk 0:03:00.4]} 6... Bd6 {[%clk
0:02:49.8]} 7. O-O {[%clk 0:03:00.7]} 7... Nbd7 {[%clk 0:02:49.6]} 8. b3 {[%clk
0:03:00.8]} 8... O-O {[%clk 0:02:49.4]} 9. Bb2 {[%clk 0:03:00.5]} 9... Ne4
{[%clk 0:02:49.4]} 10. Ne5 {[%clk 0:03:00.5]} 10... Qe7 {[%clk 0:02:22.8]} 11.
e3 {[%clk 0:02:55.3]} 11... Bb4 {[%clk 0:02:15.3]} 12. Nxe4 {[%clk 0:02:52.8]}
12... fxe4 {[%clk 0:02:09.7]} 13. f4 {[%clk 0:02:46.5]} 13... Nxe5 {[%clk
0:01:52.6]} 14. fxe5 {[%clk 0:02:41.6]} 14... Bd7 {[%clk 0:01:52.6]} 15. Qg4
{[%clk 0:02:36.1]} 15... Rac8 {[%clk 0:01:28.2]} 16. a3 {[%clk 0:02:29.5]} 16...
Rxf1+ {[%clk 0:01:23.8]} 17. Bxf1 {[%clk 0:02:25.9]} 17... Ba5 {[%clk
0:01:12.7]} 18. b4 {[%clk 0:02:23.7]} 18... Bb6 {[%clk 0:01:10.7]} 19. Be2
{[%clk 0:02:15]} 19... a5 {[%clk 0:01:10.1]} 20. Bc3 {[%clk 0:02:09.8]} 20...
Ra8 {[%clk 0:01:09.3]} 21. Rf1 {[%clk 0:02:02.7]} 21... axb4 {[%clk 0:00:55.4]}
22. axb4 {[%clk 0:01:47.4]} 22... Ra3 {[%clk 0:00:51.2]} 23. Bd2 {[%clk
0:01:36.9]} 23... Ra2 {[%clk 0:00:51.1]} 24. Bc3 {[%clk 0:01:33.9]} 24... Be8
{[%clk 0:00:48.4]} 25. Re1 {[%clk 0:01:06.6]} 25... Ra3 {[%clk 0:00:43.2]} 26.
Bd2 {[%clk 0:01:03.1]} 26... Ra2 {[%clk 0:00:43.5]} 27. Bc3 {[%clk 0:01:03.2]}
27... Bg6 {[%clk 0:00:32.8]} 28. Qf4 {[%clk 0:00:57.3]} 28... Rc2 {[%clk
0:00:28]} 29. c5 {[%clk 0:00:22.2]} 29... Rxc3 {[%clk 0:00:12.2]} 30. cxb6
{[%clk 0:00:22.5]} 30... Qxb4 {[%clk 0:00:13.1]} 31. Ra1 {[%clk 0:00:18.5]}
31... Ra3 {[%clk 0:00:11.8]} 32. Rxa3 {[%clk 0:00:18.2]} 32... Qxa3 {[%clk
0:00:12.7]} 33. Qg5 {[%clk 0:00:15.9]} 33... Qf8 {[%clk 0:00:07.8]} 34. Bg4
{[%clk 0:00:14.5]} 34... Bf7 {[%clk 0:00:08]} 35. Be2 {[%clk 0:00:09.8]} 35...
h6 {[%clk 0:00:08.1]} 36. Qf4 {[%clk 0:00:09.4]} 36... Qd8 {[%clk 0:00:08.2]}
37. Qf1 {[%clk 0:00:02.4]} 37... Qxb6 {[%clk 0:00:08.6]} 38. Qa1 {[%clk
0:00:03]} 38... Qb3 {[%clk 0:00:06.8]} 39. Qa8+ {[%clk 0:00:03.4]} 39... Kh7
{[%clk 0:00:07.4]} 40. Kf2 {[%clk 0:00:04.1]} 40... Qb2 {[%clk 0:00:07.5]} 41.
Qa4 {[%clk 0:00:04.1]} 41... Bh5 {[%clk 0:00:07.4]} 42. Qd1 {[%clk 0:00:04]}
42... Qxe2+ {[%clk 0:00:07.5]} 43. Qxe2 {[%clk 0:00:04.9]} 43... Bxe2 {[%clk
0:00:08.3]} 44. Kxe2 {[%clk 0:00:05.8]} 44... b6 {[%clk 0:00:06.9]} 45. Kd2
{[%clk 0:00:06]} 45... c5 {[%clk 0:00:07.6]} 46. Kc3 {[%clk 0:00:06.2]} 46...
Kg6 {[%clk 0:00:08.3]} 47. h3 {[%clk 0:00:06]} 47... Kf7 {[%clk 0:00:07.5]} 48.
Kd2 {[%clk 0:00:05.1]} 48... Ke7 {[%clk 0:00:07.4]} 49. Kc3 {[%clk 0:00:05.2]}
49... Kd7 {[%clk 0:00:07.9]} 50. Kb3 {[%clk 0:00:05.5]} 50... Kc6 {[%clk
0:00:08.3]} 51. Ka4 {[%clk 0:00:05.9]} 51... b5+ {[%clk 0:00:08.4]} 52. Kb3
{[%clk 0:00:06]} 52... cxd4 {[%clk 0:00:08.3]} 53. exd4 {[%clk 0:00:06.3]} 53...
Kb6 {[%clk 0:00:08.7]} 54. Kb4 {[%clk 0:00:06.2]} 54... Ka6 {[%clk 0:00:07.7]}
55. g4 {[%clk 0:00:05.3]} 55... g5 {[%clk 0:00:07]} 56. Kb3 {[%clk 0:00:04.7]}
56... Ka5 {[%clk 0:00:07.6]} 57. Ka3 {[%clk 0:00:05.6]} 57... b4+ {[%clk
0:00:08.4]} 58. Kb3 {[%clk 0:00:06.5]} 58... Kb5 {[%clk 0:00:09.1]} 59. Kb2
{[%clk 0:00:07.4]} 59... Kc4 {[%clk 0:00:10]} 60. Kc2 {[%clk 0:00:08.3]} 60...
Kxd4 {[%clk 0:00:10.7]} 61. Kb3 {[%clk 0:00:09.2]} 61... e3 {[%clk 0:00:10]} 62.
Kxb4 {[%clk 0:00:10.1]} 62... e2 {[%clk 0:00:10.7]} 0-1